[Event "VIII Open Semana Santa 2024"]
[Site "San Vicente del Raspeig"]
[Date "2024.03.29"]
[Round "5.9"]
[White "Vetokhin, Savva"]
[Black "Solodovnichenko, Yuri"]
[Result "1-0"]
[ECO "D45"]
[WhiteElo "2427"]
[BlackElo "2481"]
[Annotator "TA"]
[PlyCount "71"]
[EventDate "2024.03.27"]
[EventType "swiss"]
[EventCountry "ESP"]
[SourceTitle "playchess.com"]
[Source "ChessBase"]
[SourceQuality "1"]
[TimeControl "5400+30"]

{[%evp 14,71,0,0,0,0,0,0,0,0,5,0,0,0,15,12,9,0,8,0,0,-8,10,6,5,4,13,13,9,0,0,0,11,0,0,0,0,0,0,0,18,21,30,30,23,20,45,25,148,150,206,163,195,202,395,390,500,510,722,559]} 1. d4 {[%emt 0:00:02]} d5 {[%emt 0:02:21]} 2. c4 {[%emt 0:00:14]} e6 {[%emt 0:00:05]} 3. Nc3 {[%emt 0:00:06]} c6 {[%emt 0:00:17]} 4. e3 {[%emt 0:00:12]} Nf6 {[%emt 0:01:35]} 5. Nf3 {[%emt 0:00:11]} Nbd7 {[%emt 0:00:07]} 6. Be2 {[%emt 0:00:15]} Bd6 {[%emt 0:00:15]} 7. O-O {[%emt 0:00:15]} O-O {[%emt 0:00:29]} 8. b3 {[%emt 0:00:07]} b6 {[%emt 0:00:49]} 9. a4 {[%emt 0:00:13]} a5 {[%emt 0:01:11]} 10. Bb2 {[%emt 0:00:23]} Bb7 {[%emt 0:01:47] The position is equal.} 11. Bd3 {[%emt 0:00:29]} Re8 {[%emt 0:13:22]} 12. Re1 {[%emt 0:04:13]} Bb4 {[%emt 0:08:51]} 13. Rf1 {[%emt 0:05:49]} Bd6 {[%emt 0:01:11]} 14. Rc1 {[%emt 0:01:47]} Rc8 {[%emt 0:05:39]} 15. h3 {[%emt 0:01:06]} h6 {[%emt 0:14:38]} 16. Qe2 {[%emt 0:03:08]} Qe7 {[%emt 0:08:12]} 17. Rfe1 {[%emt 0:05:51]} Bb4 {[%emt 0:04:11]} (17... e5 {is interesting.} 18. dxe5 Nxe5 19. cxd5 Nxf3+ 20. Qxf3 Qe5) 18. Red1 {[%emt 0:02:59]} Rcd8 {[%emt 0:01:07]} 19. Bb1 {[%emt 0:11:45]} Bd6 {[%emt 0:04:18]} 20. Re1 {[%emt 0:01:25]} Bb4 {[%emt 0:01:46]} 21. Red1 {[%emt 0:02:44]} Bd6 {[%emt 0:00:05]} 22. Bd3 {[%emt 0:00:19]} Bb4 {[%emt 0:01:42]} 23. e4 {[%emt 0:03:55]} dxe4 {[%emt 0:03:54]} 24. Nxe4 {[%emt 0:00:05]} Nxe4 {[%emt 0:00:05]} 25. Bxe4 {[%emt 0:00:19]} f5 {[%emt 0:02:45]} 26. Bc2 {[%emt 0:03:33][%cal Be4c2,Bc2d3,Bd3b5][%mdl 32]} c5 {[%emt 0:00:05]} 27. d5 {[%emt 0:04:35]} exd5 {[%emt 0:01:08]} 28. Qxe7 {[%emt 0:00:34]} Rxe7 {[%emt 0:00:04]} 29. cxd5 {[%emt 0:00:11][%cal Bc4d5,Bd5d6][%mdl 32]} g6 {[%emt 0:12:12]} 30. Bd3 {[%emt 0:05:29]} Kh7 {[%emt 0:08:21]} (30... Bxd5 $11 {remains equal.} 31. Bb5 Bxb3) 31. Bb5 $16 {[%emt 0:01:33]} Rf7 {[%emt 0:02:25]} (31... Kg8 $16 {might work better.} 32. Ne1 Kf8) 32. Bc4 {[%emt 0:00:49]} Rff8 {[%emt 0:00:31]} 33. Ne5 {[%emt 0:01:31]} Nb8 {[%emt 0:01:01] [#]} (33... Nxe5 34. Bxe5 h5) 34. d6 $18 {[%emt 0:02:22]} Nc6 {[%emt 0:00:25]} 35. Bb5 {[%emt 0:00:04]} Nd4 {[%emt 0:00:17]} 36. Bxd4 {[%emt 0:00:05] Weighted Error Value: White=0.04 (flawless) /Black=0.26 (precise) .  Mistake:       	---       	Black=3      Inaccurate:     	---       	Black=1      OK:         	White=13    	Black=11     Best:        	White=1     	---} 1-0

[Event "VIII Open Semana Santa 2024"]
[Site "San Vicente del Raspeig"]
[Date "2024.03.29"]
[Round "5.10"]
[White "Garriga Cazorla, Pere"]
[Black "Tippa, Aswath Srisai"]
[Result "1-0"]
[ECO "D52"]
[WhiteElo "2460"]
[BlackElo "1647"]
[Annotator "RC"]
[PlyCount "125"]
[EventDate "2024.03.27"]
[EventType "swiss"]
[EventCountry "ESP"]
[SourceTitle "playchess.com"]
[Source "ChessBase"]
[SourceQuality "1"]
[TimeControl "5400+30"]

1. d4 {[%emt 0:01:16]} d5 {[%emt 0:00:14]} 2. c4 {[%emt 0:00:07]} e6 {[%emt 0:00:08]} 3. Nc3 {[%emt 0:00:14]} Nf6 {[%emt 0:00:13]} 4. Nf3 {[%emt 0:00:54]} c6 {[%emt 0:00:08]} 5. Bg5 {[%emt 0:00:12]} Nbd7 {[%emt 0:00:11]} 6. e3 {[%emt 0:00:09]} Qa5 {[%emt 0:00:07]} 7. cxd5 {[%emt 0:00:08]} Nxd5 {[%emt 0:00:08]} 8. Rc1 {[%emt 0:00:13]} Nxc3 {[%emt 0:00:08]} 9. bxc3 {[%emt 0:00:04]} Ba3 {[%emt 0:00:06]} 10. Rc2 {[%emt 0:00:02]} O-O {[%emt 0:00:08]} 11. Bd3 {[%emt 0:03:45]} b6 {[%emt 0:00:19]} 12. h4 {[%emt 0:00:19]} Ba6 {[%emt 0:00:33]} 13. Bxa6 {[%emt 0:02:24]} Qxa6 {[%emt 0:00:08]} 14. Qe2 {[%emt 0:00:03]} Qxe2+ {[%emt 0:05:34]} 15. Kxe2 {[%emt 0:00:26]} Bd6 {[%emt 0:02:29]} 16. e4 {[%emt 0:03:02]} f6 {[%emt 0:00:31]} 17. Be3 {[%emt 0:00:23]} h5 {[%emt 0:00:13]} 18. Rd1 {[%emt 0:02:47]} Rfd8 {[%emt 0:01:25]} 19. Nd2 {[%emt 0:03:17]} Rac8 {[%emt 0:05:33]} 20. a4 {[%emt 0:05:02]} Kf7 {[%emt 0:04:39]} 21. g3 {[%emt 0:03:40]} Be7 {[%emt 0:11:45]} 22. a5 {[%emt 0:11:25]} b5 {[%emt 0:07:10]} 23. c4 {[%emt 0:02:40]} Ke8 {[%emt 0:31:18]} 24. Rdc1 {[%emt 0:11:48]} Ba3 {[%emt 0:01:01]} 25. Rb1 {[%emt 0:00:08]} bxc4 {[%emt 0:10:51]} 26. Nxc4 {[%emt 0:02:49]} Be7 {[%emt 0:00:09]} 27. Rb7 {[%emt 0:03:53]} Ra8 {[%emt 0:00:12]} 28. a6 {[%emt 0:04:08]} Nb8 {[%emt 0:04:02]} 29. Na5 {[%emt 0:01:51]} Rd7 {[%emt 0:02:12]} 30. Rcb2 {[%emt 0:06:13]} Nxa6 {[%emt 0:00:22]} 31. Nxc6 {[%emt 0:00:09]} Bd6 {[%emt 0:01:52]} 32. f4 {[%emt 0:02:34]} Rc7 {[%emt 0:00:28]} 33. Rxc7 {[%emt 0:03:17]} Bxc7 {[%emt 0:00:32]} 34. d5 {[%emt 0:00:49]} Kd7 {[%emt 0:01:01]} 35. Kd3 {[%emt 0:02:18]} f5 {[%emt 0:05:10]} 36. Bxa7 {[%emt 0:08:35]} fxe4+ {[%emt 0:01:17]} 37. Kxe4 {[%emt 0:00:02]} Bd6 {[%emt 0:00:35]} 38. Bb6 {[%emt 0:01:46]} Rc8 {[%emt 0:01:52]} 39. Nd4 {[%emt 0:06:43]} exd5+ {[%emt 0:00:18]} 40. Kxd5 {[%emt 0:01:28]} Rb8 {[%emt 0:02:17]} 41. Nc6 {[%emt 0:05:19]} Rc8 {[%emt 0:01:13]} 42. Ne5+ {[%emt 0:00:41]} Bxe5 {[%emt 0:00:05]} 43. fxe5 {[%emt 0:00:38]} Rc6 {[%emt 0:00:16]} 44. Rb1 {[%emt 0:01:35]} Rg6 {[%emt 0:00:36]} 45. Ba5 {[%emt 0:00:26]} Nc7+ {[%emt 0:01:49]} 46. Bxc7 {[%emt 0:00:07]} Kxc7 {[%emt 0:00:03]} 47. Ra1 {[%emt 0:00:56]} Rxg3 {[%emt 0:00:26]} 48. Ra7+ {[%emt 0:00:01]} Kd8 {[%emt 0:00:37]} 49. Kd6 {[%emt 0:00:11]} Rd3+ {[%emt 0:00:24]} 50. Ke6 {[%emt 0:00:04]} Rd4 {[%emt 0:00:14]} 51. Rxg7 {[%emt 0:01:24]} Rxh4 {[%emt 0:00:12]} 52. Rg8+ {[%emt 0:00:52]} Kc7 {[%emt 0:00:05]} 53. Kf7 {[%emt 0:01:08]} Re4 {[%emt 0:01:32]} 54. e6 {[%emt 0:00:36]} Kd6 {[%emt 0:00:31]} 55. Rd8+ {[%emt 0:01:10]} Ke5 {[%emt 0:00:08]} 56. Rh8 {[%emt 0:00:50]} Rf4+ {[%emt 0:00:29]} 57. Ke7 {[%emt 0:00:05]} h4 {[%emt 0:01:22]} 58. Rh5+ {[%emt 0:00:27]} Ke4 {[%emt 0:01:07]} 59. Kd6 {[%emt 0:00:16]} Rf6 {[%emt 0:00:54]} 60. Rxh4+ {[%emt 0:00:38]} Kf5 {[%emt 0:00:01]} 61. Rh5+ {[%emt 0:00:01]} Kg6 {[%emt 0:00:14]} 62. Re5 {[%emt 0:00:44]} Kg7 {[%emt 0:00:28]} 63. Kd7 {[%emt 0:00:13]} 1-0

[Event "VIII Open Semana Santa 2024"]
[Site "San Vicente del Raspeig"]
[Date "2024.03.29"]
[Round "5.11"]
[White "Niedbala, Bartlomiej"]
[Black "Shuvalova, Polina"]
[Result "1/2-1/2"]
[ECO "C47"]
[WhiteElo "2388"]
[BlackElo "2455"]
[Annotator "TA"]
[PlyCount "36"]
[EventDate "2024.03.27"]
[EventType "swiss"]
[EventCountry "ESP"]
[SourceTitle "playchess.com"]
[Source "ChessBase"]
[SourceQuality "1"]
[TimeControl "5400+30"]

{[%evp 17,36,0,0,0,8,0,0,-7,14,16,14,8,12,14,16,8,18,12,18,5,12]} 1. e4 {[%emt 0:01:31]} e5 {[%emt 0:00:04]} 2. Nf3 {[%emt 0:00:47]} Nc6 {[%emt 0:00:04]} 3. Nc3 {[%emt 0:00:08]} Nf6 {[%emt 0:00:07]} 4. d4 {[%emt 0:00:04]} exd4 {[%emt 0:00:15]} 5. Nxd4 {[%emt 0:00:06]} Bb4 {[%emt 0:00:08]} 6. Nxc6 {[%emt 0:00:08]} bxc6 {[%emt 0:00:03]} 7. Bd3 {[%emt 0:00:06]} O-O {[%emt 0:00:10]} 8. O-O {[%emt 0:00:05]} d5 {[%emt 0:00:03]} 9. exd5 {[%emt 0:00:15]} cxd5 {[%emt 0:00:15] The position is equal.} 10. h3 {[%emt 0:00:21] Prevents Bg4} c6 {[%emt 0:02:53]} 11. Qf3 {[%emt 0:01:08]} Bd6 {[%emt 0:02:32]} 12. Bf4 {[%emt 0:05:03]} Rb8 {[%emt 0:03:33]} 13. b3 {[%emt 0:00:25]} Rb4 {[%emt 0:00:40]} 14. Ne2 {[%emt 0:13:55]} Bxf4 {[%emt 0:02:15]} 15. Nxf4 {[%emt 0:01:31]} Qd6 {[%emt 0:00:08]} 16. Nh5 {[%emt 0:06:01]} Nxh5 {[%emt 0:01:25]} 17. Qxh5 {[%emt 0:00:02][%csl Gd3][%cal Rh5h7] [#]} g6 {[%emt 0:00:20]} 18. Qg5 {[%emt 0:04:18]} Kg7 {[%emt 0:05:16] Not much happened in this game.   Weighted Error Value: White=0.02 (flawless) /Black=0.03 (flawless) .  OK:         	White=4     	Black=5} 1/2-1/2

[Event "VIII Open Semana Santa 2024"]
[Site "San Vicente del Raspeig"]
[Date "2024.03.29"]
[Round "5.12"]
[White "Trigo Urquijo, Sergio"]
[Black "Muthaiah AL"]
[Result "1/2-1/2"]
[ECO "E48"]
[WhiteElo "2387"]
[BlackElo "2454"]
[Annotator "TA"]
[PlyCount "23"]
[EventDate "2024.03.27"]
[EventType "swiss"]
[EventCountry "ESP"]
[SourceTitle "playchess.com"]
[Source "ChessBase"]
[SourceQuality "1"]
[TimeControl "5400+30"]

{[%evp 11,23,2,0,-1,-3,0,0,0,-9,-25,0,0,0,-12]} 1. d4 {[%emt 0:00:08]} Nf6 {[%emt 0:02:16]} 2. c4 {[%emt 0:00:33]} e6 {[%emt 0:01:17]} 3. Nc3 {[%emt 0:00:40]} Bb4 {[%emt 0:00:31]} 4. e3 {[%emt 0:00:57]} O-O {[%emt 0:00:37]} 5. Bd3 {[%emt 0:00:44]} d5 {[%emt 0:00:22]} 6. cxd5 {[%emt 0:01:01]} exd5 {[%emt 0:00:35]} 7. a3 {[%emt 0:01:11]} Bd6 {[%emt 0:01:12]} 8. Qc2 {[%emt 0:00:20]} a6 {[%emt 0:03:19]} 9. Nge2 {[%emt 0:02:02]} Re8 {[%emt 0:00:37]} 10. Bd2 {[%emt 0:04:19]} c5 {[%emt 0:08:50]} 11. dxc5 {[%emt 0:11:25]} Bxc5 {[%emt 0:00:23]} 12. Nb5 {[%emt 0:02:57] A rather calm draw.   Weighted Error Value: White=0.00 (flawless) /Black=0.06 (flawless) .  OK:         	White=2     	Black=1      Best:        	White=1     	---} 1/2-1/2

[Event "VIII Open Semana Santa 2024"]
[Site "San Vicente del Raspeig"]
[Date "2024.03.29"]
[Round "5.14"]
[White "Beydullayeva, Govhar"]
[Black "Gkoumas, Georgios"]
[Result "1-0"]
[ECO "D36"]
[WhiteElo "2374"]
[BlackElo "2445"]
[Annotator "TA"]
[PlyCount "67"]
[EventDate "2024.03.27"]
[EventType "swiss"]
[EventCountry "ESP"]
[SourceTitle "playchess.com"]
[Source "ChessBase"]
[SourceQuality "1"]
[TimeControl "5400+30"]

{[%evp 25,67,29,23,27,31,24,38,15,29,25,32,18,29,24,22,19,14,18,21,22,17,7,0,7,29,37,29,33,24,16,110,33,39,23,28,5,558,566,540,256,29974,29975,29990,29991]} 1. d4 {[%emt 0:00:03]} Nf6 {[%emt 0:01:54]} 2. c4 {[%emt 0:00:03]} e6 {[%emt 0:00:06]} 3. Nf3 {[%emt 0:00:06]} d5 {[%emt 0:00:03]} 4. Nc3 {[%emt 0:00:07]} c6 {[%emt 0:00:09]} 5. Bg5 {[%emt 0:00:10]} Be7 {[%emt 0:00:12]} 6. e3 {[%emt 0:00:57]} Nbd7 {[%emt 0:00:18]} 7. Qc2 {[%emt 0:00:55]} O-O {[%emt 0:00:40]} 8. cxd5 {[%emt 0:00:38]} exd5 {[%emt 0:00:23]} 9. Bd3 {[%emt 0:02:28]} h6 {[%emt 0:00:09]} 10. Bh4 {[%emt 0:06:51]} Re8 {[%emt 0:02:03]} 11. O-O {[%emt 0:00:38]} Ne4 {[%emt 0:00:47]} 12. Bxe4 {[%emt 0:00:07]} Bxh4 {[%emt 0:00:12]} 13. Bh7+ {[%emt 0:00:04]} Kh8 {[%emt 0:00:11]} 14. Nxh4 {[%emt 0:00:07]} Qxh4 {[%emt 0:00:20]} 15. Bd3 {[%emt 0:00:14]} Nf6 {[%emt 0:23:00]} 16. Rae1 {[%emt 0:06:07] White is slightly better.} Be6 {[%emt 0:02:43]} 17. f3 {[%emt 0:05:28]} Rac8 {[%emt 0:13:00]} 18. Ne2 {[%emt 0:17:15]} (18. Qf2 {simplifies} Qxf2+ 19. Kxf2 g6 20. Rc1) 18... Bd7 {[%emt 0:06:04]} 19. Nf4 {[%emt 0:11:41]} Nh5 {[%emt 0:05:10]} 20. Nxh5 {[%emt 0:02:28]} (20. g3 $5 Qg5 $8 21. Ng2 $11) 20... Qxh5 {[%emt 0:00:52]} 21. Qb3 {[%emt 0:02:43]} Rb8 {[%emt 0:14:10]} 22. Qa3 {[%emt 0:06:54]} a6 {[%emt 0:01:18]} 23. Bc2 {[%emt 0:00:08]} Qg5 {[%emt 0:01:56]} 24. Qd3 {[%emt 0:03:37]} g6 {[%emt 0:00:05]} 25. e4 {[%emt 0:00:30]} dxe4 {[%emt 0:13:56]} 26. fxe4 {[%emt 0:00:05]} Kg8 {[%emt 0:00:23]} 27. Bb3 {[%emt 0:02:16]} Re7 {[%emt 0:04:24] [#]} (27... Be6 $11 {keeps the balance.}) 28. Re3 {[%emt 0:02:29]} ({White should try} 28. Qf3 $1 $16) 28... Be6 $1 $14 {[%emt 0:01:11]} 29. Rg3 $36 {[%emt 0:01:25][%mdl 2048] Black is under pressure.} Qh5 {[%emt 0:01:27]} 30. d5 {[%emt 0:03:38][%cal Bd4d5,Bd5d6][%mdl 32]} Bg4 {[%emt 0:05:02][%mdl 8192] This costs Black the game.} (30... cxd5 $11 {and Black is okay.} 31. exd5 Rd7) 31. Qd4 $18 {[%emt 0:02:36]} Rbe8 {[%emt 0:01:48]} 32. Qf6 {[%emt 0:05:30]} (32. h3 $142 Be2 33. d6 Bxf1 34. dxe7) 32... Be2 $2 {[%emt 0:01:31] [#]} (32... cxd5 $18 33. h3 (33. Bxd5 Be6 $16) (33. exd5 Re1 $18) 33... Bd7 34. Bxd5 g5) 33. d6 {[%emt 0:01:26]} Bxf1 {[%emt 0:00:59]} 34. Rxg6+ {[%emt 0:00:17] Weighted Error Value: White=0.28 (precise) /Black=0.65.  Loses game:     	---       	Black=1      Mistake:       	White=2     	Black=2      OK:         	White=9     	Black=8      Best:        	White=1     	---        Strong:       	---       	Black=1} 1-0

[Event "VIII Open Semana Santa 2024"]
[Site "San Vicente del Raspeig"]
[Date "2024.03.29"]
[Round "5.15"]
[White "Aronsson, Marten"]
[Black "Espinosa Aranda, Angel"]
[Result "1/2-1/2"]
[ECO "A30"]
[WhiteElo "2285"]
[BlackElo "2440"]
[Annotator "TA"]
[PlyCount "32"]
[EventDate "2024.03.27"]
[EventType "swiss"]
[EventCountry "ESP"]
[SourceTitle "playchess.com"]
[Source "ChessBase"]
[SourceQuality "1"]
[TimeControl "5400+30"]

{[%evp 18,32,8,-5,0,0,22,-29,0,0,4,-12,-8,-40,0,0,5]} 1. Nf3 {[%emt 0:00:06]} Nf6 {[%emt 0:01:01]} 2. g3 {[%emt 0:00:13]} b6 {[%emt 0:05:57]} 3. Bg2 {[%emt 0:01:40]} Bb7 {[%emt 0:00:06]} 4. c4 {[%emt 1:30:31]} c5 {[%emt 0:00:14]} 5. O-O {[%emt 0:00:00]} g6 {[%emt 0:00:42]} 6. Nc3 {[%emt 0:00:00]} Bg7 {[%emt 0:00:13]} 7. d3 {[%emt 0:00:00]} O-O {[%emt 0:00:26]} 8. e4 {[%emt 0:00:00]} d6 {[%emt 0:02:22]} 9. h3 {[%emt 0:00:00]} Nc6 {[%emt 0:05:07]} 10. Be3 {[%emt 0:00:00]} Nd7 {[%emt 0:03:55][%cal Bf6d7,Bd7e5,Be5c6,Bc6d4][%mdl 32]} 11. Qd2 {[%emt 0:00:00]} Nde5 {[%emt 0:03:08]} 12. Ne2 {[%emt 0:00:00]} (12. Nh4 $142) 12... e6 {[%emt 0:05:59] Black has an edge.} 13. Ne1 {[%emt 0:00:00]} Ne7 {[%emt 0:03:36]} 14. f4 {[%emt 0:00:00]} N5c6 {[%emt 0:00:29]} 15. d4 {[%emt 0:00:00]} cxd4 {[%emt 0:09:08]} 16. Nxd4 {[%emt 0:00:00]} Nxd4 {[%emt 0:01:56] A rather calm draw.   Weighted Error Value: White=0.20 (precise) /Black=0.16 (very precise) .  Mistake:       	White=1     	---        Inaccurate:     	White=1     	Black=2      OK:         	---       	Black=1} 1/2-1/2

[Event "VIII Open Semana Santa 2024"]
[Site "San Vicente del Raspeig"]
[Date "2024.03.29"]
[Round "5.16"]
[White "Movsziszian, Karen"]
[Black "Hernandez, Cristian Andres"]
[Result "1-0"]
[ECO "A03"]
[WhiteElo "2439"]
[BlackElo "2333"]
[Annotator "TA"]
[PlyCount "69"]
[EventDate "2024.03.27"]
[EventType "swiss"]
[EventCountry "ESP"]
[SourceTitle "playchess.com"]
[Source "ChessBase"]
[SourceQuality "1"]
[TimeControl "5400+30"]

{[%evp 9,69,-31,-25,-42,-26,-37,-5,-21,4,-4,6,-2,-1,-20,0,0,0,-23,-27,-20,0,0,0,0,31,31,30,20,22,8,36,37,52,45,54,50,43,33,50,8,18,8,11,8,54,54,56,54,62,45,199,189,187,192,181,187,175,160,257,251,330,328]} 1. d3 {[%emt 0:00:06]} d5 {[%emt 0:02:41]} 2. f4 {[%emt 0:00:23]} Nc6 {[%emt 0:01:44]} 3. Nf3 {[%emt 0:00:05]} Bg4 {[%emt 0:00:07]} 4. Nbd2 {[%emt 0:00:05]} Qd6 {[%emt 0:02:35]} 5. g3 {[%emt 0:01:18]} e5 {[%emt 0:00:16]} 6. fxe5 {[%emt 0:05:04]} Nxe5 {[%emt 0:00:07]} 7. Bg2 {[%emt 0:00:05]} Nxf3+ {[%emt 0:04:23]} 8. Nxf3 {[%emt 0:02:08] The position is equal.} Qb6 {[%emt 0:00:17]} 9. c3 {[%emt 0:02:02]} Bc5 {[%emt 0:03:12]} 10. Qa4+ {[%emt 0:09:59]} Bd7 {[%emt 0:00:14]} 11. Qb3 {[%emt 0:00:06]} Ne7 {[%emt 0:11:44]} 12. Bf4 {[%emt 0:11:52]} Ng6 {[%emt 0:05:34]} 13. d4 {[%emt 0:03:39]} Nxf4 {[%emt 0:00:35]} 14. gxf4 {[%emt 0:00:08]} Qxb3 {[%emt 0:00:34]} 15. axb3 {[%emt 0:00:02][%cal Ba2b3,Bb3c4,Bc4c5][%mdl 32]} Bd6 {[%emt 0:00:16]} 16. Ne5 {[%emt 0:01:12]} f6 {[%emt 0:05:49]} 17. Nxd7 {[%emt 0:06:13]} Kxd7 {[%emt 0:00:05]} 18. e3 {[%emt 0:11:01]} c6 {[%emt 0:00:06]} 19. c4 {[%emt 0:00:43]} dxc4 {[%emt 0:00:17]} 20. bxc4 {[%emt 0:00:02]} f5 {[%emt 0:06:48]} 21. c5 {[%emt 0:07:26]} Be7 {[%emt 0:02:41]} 22. h4 {[%emt 0:01:00]} a5 {[%emt 0:09:38][%cal Ob7b6]} 23. Ke2 {[%emt 0:02:03]} Rhb8 {[%emt 0:09:23]} 24. h5 {[%emt 0:03:55]} b6 {[%emt 0:00:15]} 25. cxb6 {[%emt 0:01:10]} ({But not} 25. Bh3 bxc5 26. Bxf5+ Kc7 $15) 25... Rxb6 {[%emt 0:00:05]} 26. Ra2 {[%emt 0:00:35]} Rb5 {[%emt 0:02:19]} (26... a4 $11) 27. Rc1 $14 {[%emt 0:03:46]} Ra6 {[%emt 0:00:05]} 28. Rc2 {[%emt 0:00:57]} Rab6 {[%emt 0:03:17]} 29. Kf3 {[%emt 0:00:04] Bf1 is the strong threat.} Bb4 $2 {[%emt 0:04:47] [#] This move loses the game for Black.} ({Better is} 29... a4 $14) 30. Bf1 $18 {[%emt 0:00:53]} Rd5 {[%emt 0:00:05]} 31. Rg2 {[%emt 0:00:11]} g6 {[%emt 0:08:12]} 32. hxg6 {[%emt 0:01:33]} hxg6 {[%emt 0:00:06]} 33. Rxg6 {[%emt 0:00:04]} Ke7 {[%emt 0:00:43]} (33... Kc7 $16 {was called for.} 34. Bc4 Rd8) 34. b3 {[%emt 0:01:54]} Rd8 {[%emt 0:03:10]} 35. Rh2 {[%emt 0:01:51] Weighted Error Value: White=0.06 (flawless) /Black=0.28 (precise) .  Mistake:       	---       	Black=3      Inaccurate:     	White=1     	Black=4      OK:         	White=9     	Black=7      Best:        	White=1     	Black=2} 1-0

[Event "VIII Open Semana Santa 2024"]
[Site "San Vicente del Raspeig"]
[Date "2024.03.29"]
[Round "5.17"]
[White "Ilinca, Felix-Antonio"]
[Black "Adhiban, B.."]
[Result "1/2-1/2"]
[ECO "B53"]
[WhiteElo "2373"]
[BlackElo "2541"]
[Annotator "TA"]
[PlyCount "132"]
[EventDate "2024.03.27"]
[EventType "swiss"]
[EventCountry "ESP"]
[SourceTitle "playchess.com"]
[Source "ChessBase"]
[SourceQuality "1"]
[TimeControl "5400+30"]

{[%evp 31,132,0,0,0,0,0,4,0,-6,-3,-3,-7,-6,-4,0,-7,0,-12,-12,-8,-12,-12,-3,-5,0,-2,0,0,-6,-8,0,0,0,0,0,0,0,0,0,-4,0,-8,0,0,0,-4,-8,-8,-8,-8,0,0,0,0,0,0,0,-8,0,0,0,0,0,-1,0,-6,0,0,0,-1,-1,-15,-15,-15,-12,-16,-16,-16,-16,-16,-16,-16,-16,-16,-16,-23,-23,-23,-16,-16,-16,-16,-16,-16,-16,-16,-16,-16,-16,-16,-16,-16,-16]} 1. e4 {[%emt 0:00:52]} c5 {[%emt 0:00:04]} 2. Nf3 {[%emt 0:00:27]} d6 {[%emt 0:00:04]} 3. d4 {[%emt 0:00:20]} cxd4 {[%emt 0:00:04]} 4. Qxd4 {[%emt 0:00:20]} Nc6 {[%emt 0:00:07]} 5. Qe3 {[%emt 0:00:23]} g6 {[%emt 0:00:18]} 6. c4 {[%emt 0:00:21] B53: Sizilianisch (Ungarische Variante).} Nh6 {[%emt 0:09:05]} 7. Nc3 {[%emt 0:03:59]} Bg7 {[%emt 0:06:56]} 8. Be2 {[%emt 0:01:08]} O-O {[%emt 0:00:50]} 9. O-O {[%emt 0:00:52]} f5 {[%emt 0:00:08]} 10. c5 $146 {[%emt 0:09:33]} ({Predecessor:} 10. exf5 Nxf5 11. Qd2 Nfd4 12. Nxd4 Nxd4 13. Bd1 Be6 14. b3 b5 15. cxb5 Nxb5 16. Bb2 {0-1 Priyanka,K (2146)-Ilamparthi,A (2336) Rilton Cup 50th 2022 (7)}) 10... Ng4 {[%emt 0:14:54]} 11. Qd3 {[%emt 0:03:37]} dxc5 {[%emt 0:11:37]} 12. Qc4+ {[%emt 0:01:50]} Kh8 {[%emt 0:00:04]} 13. Qxc5 {[%emt 0:06:19]} fxe4 {[%emt 0:00:11]} 14. Nxe4 {[%emt 0:01:47]} Bf5 {[%emt 0:02:16]} 15. Rd1 {[%emt 0:05:38]} Qc8 {[%emt 0:02:31]} 16. Ng3 {[%emt 0:08:06]} Nd4 {[%emt 0:00:25]} 17. Qxc8 {[%emt 0:05:33]} Nxe2+ {[%emt 0:00:05]} 18. Nxe2 {[%emt 0:00:06]} Raxc8 {[%emt 0:00:07]} 19. Nc3 {[%emt 0:00:37]} Rxc3 {[%emt 0:04:50]} 20. bxc3 {[%emt 0:01:21]} Bxc3 {[%emt 0:00:02]} 21. Ba3 {[%emt 0:02:40]} Bxa1 {[%emt 0:00:03]} 22. Rxa1 {[%emt 0:00:08]} Re8 {[%emt 0:04:38]} 23. Re1 {[%emt 0:02:22]} Kg8 {[%emt 0:00:06]} 24. Rxe7 {[%emt 0:01:15]} Rxe7 {[%emt 0:00:05]} 25. Bxe7 {[%emt 0:00:05]} Kf7 {[%emt 0:00:31]} 26. Bb4 {[%emt 0:02:51]} h5 {[%emt 0:04:04]} 27. Nd4 {[%emt 0:05:50]} Bd7 {[%emt 0:00:04]} 28. Bd6 {[%emt 0:01:11]} b5 {[%emt 0:01:15]} 29. a3 {[%emt 0:00:31]} Kf6 {[%emt 0:00:36]} 30. f4 {[%emt 0:01:54]} a6 {[%emt 0:03:25]} 31. h3 {[%emt 0:00:58]} Ne3 {[%emt 0:00:05]} 32. Kf2 {[%emt 0:00:37]} Nc4 {[%emt 0:00:31]} 33. Bc5 {[%emt 0:00:32]} Bc8 {[%emt 0:01:30]} 34. Bf8 {[%emt 0:02:44]} Nb6 {[%emt 0:04:53]} 35. Bc5 {[%emt 0:03:35]} Nd5 {[%emt 0:00:06]} 36. Bd6 {[%emt 0:03:15]} Nc3 {[%emt 0:01:22]} 37. Bb4 {[%emt 0:01:12]} Nd5 {[%emt 0:01:10]} 38. Bd6 {[%emt 0:00:14]} Kf7 {[%emt 0:00:16]} 39. Kf3 {[%emt 0:01:15]} Bb7 {[%emt 0:00:55]} 40. Kf2 {[%emt 0:01:20]} Nc3 {[%emt 0:01:05]} 41. Bb4 {[%emt 0:01:27]} Nd1+ {[%emt 0:00:59]} 42. Ke2 {[%emt 0:00:19]} Nb2 {[%emt 0:00:05]} 43. g4 {[%emt 0:02:09]} Bg2 {[%emt 0:00:21]} 44. f5 {[%emt 0:04:14]} Bxh3 {[%emt 0:00:45]} 45. fxg6+ {[%emt 0:00:09]} Kxg6 {[%emt 0:00:04]} 46. gxh5+ {[%emt 0:00:07]} Kxh5 {[%emt 0:00:03]} 47. Nc6 {[%emt 0:00:34]} Kg6 {[%emt 0:02:13]} 48. Ke3 {[%emt 0:00:33]} Kf7 {[%emt 0:01:42]} 49. Kd4 {[%emt 0:00:15]} Ke8 {[%emt 0:02:05]} 50. Kc5 {[%emt 0:00:22]} Kd7 {[%emt 0:00:18]} 51. Nb8+ {[%emt 0:00:36]} Kc7 {[%emt 0:00:05]} 52. Nxa6+ {[%emt 0:00:11]} Kb7 {[%emt 0:00:04]} 53. Kxb5 {[%emt 0:00:07]} Bf1+ {[%emt 0:00:33]} 54. Kc5 $1 {[%emt 0:00:05]} Kxa6 {[%emt 0:00:14]} 55. Bc3 {[%emt 0:00:27]} Nd3+ {[%emt 0:00:10]} 56. Kd4 {[%emt 0:00:08]} Kb5 {[%emt 0:00:05]} 57. Bb4 {[%emt 0:00:13]} (57. a4+ Kc6 58. Ke3 Nc5 $15) 57... Nf4 {[%emt 0:00:24]} 58. Ke3 {[%emt 0:00:16]} Ne6 {[%emt 0:00:05]} (58... Nd5+ $2 59. Kd2 $19) 59. Ke4 {[%emt 0:00:09]} Kc6 {[%emt 0:00:07]} 60. Ke5 {[%emt 0:00:11]} Nc7 {[%emt 0:00:05]} 61. Bd6 {[%emt 0:00:08]} Na8 {[%emt 0:00:08]} 62. Bb4 {[%emt 0:00:09]} Nb6 {[%emt 0:00:03]} 63. Be7 {[%emt 0:00:13]} Bh3 {[%emt 0:00:07]} 64. Bb4 {[%emt 0:00:10]} Nc4+ {[%emt 0:00:04]} 65. Kd4 {[%emt 0:00:04]} Be6 {[%emt 0:00:03]} 66. Bf8 {[%emt 0:00:12]} Nb6 {[%emt 0:00:04]} 1/2-1/2